bitfinex/quotes_BTCUSD_20240715
["timestamp","ask_amount","ask_price","bid_price","bid_amount"]
[1721011447305,7.40679462,62523.0,62522.0,0.320804]
[1721011448229,6.82145835,62523.0,62522.0,0.320804]
[1721011448562,7.46457799,62523.0,62522.0,0.320804]
[1721011448981,4.04627221,62523.0,62522.0,0.467904]
[1721011449191,3.32427221,62523.0,62522.0,0.467904]
[1721011449411,3.33873421,62523.0,62522.0,0.467904]
[1721011449615,2.58407794,62523.0,62522.0,0.467904]
[1721011449814,2.30707794,62523.0,62522.0,0.467904]
[1721011450019,2.21607794,62523.0,62522.0,0.467904]
[1721011450247,1.84224754,62523.0,62522.0,0.467904]
[1721011450851,2.34224754,62523.0,62522.0,0.467904]
[1721011451142,1.50524754,62523.0,62522.0,0.467904]
[1721011451345,1.64836718,62523.0,62522.0,0.467904]
[1721011452262,1.58917378,62523.0,62522.0,0.467904]
[1721011452434,1.54517378,62523.0,62522.0,0.467904]
[1721011452652,1.54517378,62523.0,62522.0,0.4992002]
[1721011452653,1.75582917,62523.0,62522.0,0.4992002]
[1721011452853,1.55020652,62523.0,62522.0,0.4992002]
[1721011453053,1.03689839,62523.0,62522.0,0.6992002]
[1721011453408,1.55020379,62523.0,62522.0,0.49919755]
[1721011454199,1.55020415,62523.0,62522.0,0.49919755]
[1721011454532,1.65020415,62523.0,62522.0,0.47061792]
[1721011454732,1.65020415,62523.0,62522.0,0.46861792]
[1721011455610,1.65020395,62523.0,62522.0,0.46861792]
[1721011455835,1.29389285,62523.0,62522.0,0.46861792]
[1721011455973,1.65020395,62523.0,62522.0,0.46861792]
[1721011456172,1.65020384,62523.0,62522.0,0.46861792]
[1721011456374,1.77125256,62523.0,62522.0,0.46861792]
[1721011456774,1.77125256,62523.0,62522.0,0.49719755]
[1721011456960,1.91496246,62523.0,62522.0,0.49519755]
[1721011457159,1.77125256,62523.0,62522.0,0.49519755]
[1721011457355,1.65020384,62523.0,62522.0,0.49519755]
[1721011457578,1.79392577,62523.0,62522.0,0.49519755]
[1721011458191,1.65020384,62523.0,62522.0,0.46661792]
[1721011458771,1.65020384,62523.0,62522.0,0.49519755]
[1721011458969,1.15020384,62523.0,62522.0,0.69519755]
[1721011459178,1.65020384,62523.0,62522.0,0.49319755]
[1721011459418,1.65020384,62523.0,62522.0,0.46461792]
[1721011460029,1.65020384,62523.0,62522.0,0.49319755]
[1721011460648,1.65020384,62523.0,62522.0,0.69319755]
[1721011460649,1.15020384,62523.0,62522.0,0.69319755]
[1721011460879,1.15020384,62523.0,62522.0,0.73219755]
[1721011461411,0.99743169,62523.0,62522.0,0.73019755]
[1721011461626,0.29743169,62523.0,62522.0,0.73019755]
[1721011461839,0.44115506,62523.0,62522.0,0.87198079]
[1721011461987,0.21413169,62523.0,62522.0,0.81485294]
[1721011462375,0.21700384,62523.0,62522.0,0.61485294]
[1721011462742,0.21700248,62523.0,62522.0,0.61485294]
[1721011462943,0.21700248,62523.0,62522.0,0.81485294]
[1721011463295,0.21413033,62523.0,62522.0,0.81485294]
[1721011464540,0.21413033,62523.0,62522.0,0.4612373]
[1721011464541,0.21700248,62523.0,62522.0,0.4612373]
[1721011465534,0.91700248,62523.0,62522.0,0.4612373]
[1721011465760,0.97700248,62523.0,62522.0,0.4612373]
[1721011465992,0.91700453,62523.0,62522.0,0.4612373]
[1721011466918,0.21700453,62523.0,62522.0,0.48981693]
[1721011467334,0.21700453,62523.0,62522.0,0.4612373]
[1721011467536,0.26227873,62523.0,62522.0,0.4612373]
[1721011467834,5.44862334,62523.0,62522.0,0.3141373]
[1721011468073,6.17162334,62523.0,62522.0,0.2974173]
[1721011468233,6.17162334,62523.0,62522.0,0.26496166]
[1721011468234,6.25992101,62523.0,62522.0,0.26496166]
[1721011468774,6.25792101,62523.0,62522.0,0.26496166]
[1721011469119,3.9040397,62523.0,62522.0,0.26496166]
[1721011469320,3.6350397,62523.0,62522.0,0.26496166]
[1721011469798,4.3940891,62523.0,62522.0,0.26496166]
[1721011469914,4.48038677,62523.0,62522.0,0.26496166]
[1721011470344,4.41938677,62523.0,62522.0,0.26496166]
[1721011470552,4.64250468,62523.0,62522.0,0.26496166]
[1721011471487,4.78670468,62523.0,62522.0,0.26496166]
[1721011471827,5.07025548,62523.0,62522.0,0.26496166]
[1721011472027,4.80342807,62523.0,62522.0,0.26496166]
[1721011472275,0.13921676,62517.0,62516.0,0.0002138]
[1721011472447,0.13921676,62517.0,62511.0,0.0088435]
[1721011472448,0.83921676,62512.0,62511.0,0.0088435]
[1721011472648,0.83921676,62512.0,62511.0,0.3287835]
[1721011472649,6.74597321,62512.0,62511.0,0.3287835]
[1721011472881,0.83921676,62498.0,62497.0,0.009163]
[1721011473122,6.85425701,62498.0,62497.0,0.009163]
[1721011473256,7.12606115,62498.0,62497.0,0.329173]
[1721011473454,7.84478454,62498.0,62497.0,0.329173]
[1721011473661,7.89983394,62498.0,62497.0,0.329173]
[1721011474261,7.85773456,62498.0,62497.0,0.329173]
[1721011474826,7.1156963,62498.0,62497.0,0.329173]
[1721011474942,7.55661665,62498.0,62497.0,0.329173]
[1721011475141,7.60071603,62498.0,62497.0,0.329173]
[1721011475399,7.47971933,62498.0,62497.0,0.329173]
[1721011475597,7.86348018,62498.0,62497.0,0.329173]
[1721011475841,7.82852378,62498.0,62497.0,0.329173]
[1721011476044,8.04139871,62498.0,62497.0,0.329173]
[1721011476247,7.8592244,62498.0,62497.0,0.329173]
[1721011476447,7.8612244,62498.0,62497.0,0.329173]
[1721011476803,7.8612244,62498.0,62497.0,0.29625571]
[1721011477900,7.8592244,62498.0,62497.0,0.29625571]
[1721011478103,6.831394,62498.0,62497.0,0.29625571]
[1721011478347,7.531394,62498.0,62497.0,0.29625571]
[1721011478753,7.52925562,62498.0,62497.0,0.29625571]
[1721011478961,7.53125562,62498.0,62497.0,0.29625571]
[1721011479358,7.76632091,62498.0,62497.0,0.29625571]
[1721011479584,7.52925562,62498.0,62497.0,0.29625571]
[1721011479751,7.61555329,62498.0,62497.0,0.29625571]
[1721011479956,6.50543771,62498.0,62497.0,0.29625571]
[1721011480188,7.09610509,62498.0,62497.0,0.29625571]
[1721011480356,7.18240276,62498.0,62497.0,0.29625571]
[1721011480557,7.14020447,62498.0,62497.0,0.29625571]
[1721011480757,7.09610509,62498.0,62497.0,0.29625571]
[1721011480964,7.258223,62498.0,62497.0,0.29625571]
[1721011481209,7.34452067,62498.0,62497.0,0.29625571]
[1721011481348,7.281223,62498.0,62497.0,0.29625571]
[1721011481957,7.2812219,62498.0,62497.0,0.29625571]
[1721011482287,7.0582219,62498.0,62497.0,0.30016371]
[1721011482493,5.22605459,62498.0,62497.0,0.30016371]
[1721011482652,5.88715349,62498.0,62497.0,0.30016371]
[1721011482900,5.18105459,62498.0,62497.0,0.30016371]
[1721011483103,4.48805459,62498.0,62497.0,0.30016371]
[1721011483327,3.57205459,62498.0,62497.0,0.30016371]
[1721011483532,4.28981626,62498.0,62497.0,0.30016371]
[1721011484349,4.31281626,62498.0,62497.0,0.30016371]
[1721011484764,3.81281626,62498.0,62497.0,0.30016371]
[1721011484964,4.31281626,62498.0,62497.0,0.30016371]
[1721011485166,2.02981576,62498.0,62497.0,0.30016371]
[1721011485370,1.96881576,62498.0,62497.0,0.30016371]
[1721011485585,1.75105409,62498.0,62497.0,0.30016371]
[1721011485783,1.25105409,62498.0,62497.0,0.30016371]
[1721011485962,1.75105409,62498.0,62497.0,0.30016371]
[1721011486167,1.87628009,62498.0,62497.0,0.30016371]
[1721011486437,1.29228009,62498.0,62497.0,0.30016371]
[1721011486672,1.89547838,62498.0,62497.0,0.30016371]
[1721011486835,1.93957776,62498.0,62497.0,0.30016371]
[1721011487216,1.89737947,62498.0,62497.0,0.30016371]
[1721011487424,1.85328009,62498.0,62497.0,0.30016371]
[1721011487624,2.015398,62498.0,62497.0,0.30016371]
[1721011487824,2.038398,62498.0,62497.0,0.30016371]
[1721011488470,2.0383972,62498.0,62497.0,0.30016371]
[1721011488644,2.03839718,62498.0,62497.0,0.30016371]
[1721011489183,2.08249656,62498.0,62497.0,0.30016371]
[1721011489355,2.12469485,62498.0,62497.0,0.30016371]
[1721011489563,2.3410855,62498.0,62497.0,0.30016371]
[1721011489774,2.12469485,62498.0,62497.0,0.30016371]
[1721011489976,1.59379399,62498.0,62497.0,0.30016371]
[1721011490375,1.37627927,62498.0,62497.0,0.36386371]
[1721011490621,1.31527927,62498.0,62497.0,0.36386371]
[1721011490735,0.69713466,62498.0,62497.0,0.44486371]
[1721011491165,0.69713466,62498.0,62497.0,0.4734017]
[1721011491368,0.78219274,62498.0,62497.0,0.36382207]
[1721011491614,0.77247927,62498.0,62497.0,0.36382207]
[1721011491808,0.71247757,62498.0,62497.0,0.36382207]
[1721011492016,0.69575418,62498.0,62497.0,0.36382207]
[1721011492224,0.75575427,62498.0,62497.0,0.36382207]
[1721011492473,0.77875427,62498.0,62497.0,0.36382207]
[1721011492670,0.68040966,62498.0,62497.0,0.36382207]
[1721011492872,0.69575427,62498.0,62497.0,0.36382207]
[1721011493072,1.39575427,62498.0,62497.0,0.36382207]
[1721011493893,1.55225427,62498.0,62497.0,0.36382207]
[1721011494093,1.39575427,62498.0,62497.0,0.36382207]
[1721011494298,1.6444727,62498.0,62497.0,0.36382207]
[1721011494988,1.54132988,62498.0,62497.0,0.36382207]
[1721011495444,1.59854636,62498.0,62497.0,0.36382207]
[1721011495666,1.83113636,62498.0,62497.0,0.36382207]
[1721011496007,1.83113636,62498.0,62497.0,0.30012207]
[1721011496212,1.89113636,62498.0,62497.0,0.30012207]
[1721011496399,1.91513636,62498.0,62497.0,0.30012207]
[1721011496596,1.91413636,62498.0,62497.0,0.30012207]
[1721011496802,2.28410872,62498.0,62497.0,0.30012207]
[1721011496997,2.08410872,62498.0,62497.0,0.30012207]
[1721011497443,1.58410872,62498.0,62497.0,0.30012207]
[1721011497601,2.28410872,62498.0,62497.0,0.30012207]
[1721011497805,1.90403029,62498.0,62497.0,0.30012207]
[1721011498360,1.7950591,62498.0,62497.0,0.30012207]
[1721011498662,1.9038632,62498.0,62497.0,0.30012207]
[1721011498861,1.90288804,62498.0,62497.0,0.30012207]
[1721011500637,2.06392839,62498.0,62497.0,0.30012207]
[1721011500842,2.10392934,62498.0,62497.0,0.30012207]
[1721011501048,2.14126353,62498.0,62497.0,0.30012207]
[1721011501442,2.14126878,62498.0,62497.0,0.30012207]
[1721011502119,2.14126878,62498.0,62497.0,0.28339868]
[1721011502120,1.91957426,62498.0,62497.0,0.28339868]
[1721011502638,1.57748726,62498.0,62497.0,0.42429868]
[1721011502839,0.96872157,62498.0,62497.0,0.42429868]
[1721011502995,1.41248025,62498.0,62497.0,0.42429868]
[1721011503741,1.55571247,62498.0,62497.0,0.42429868]
[1721011503876,1.5557158,62498.0,62497.0,0.42429868]
[1721011504078,1.41247832,62498.0,62497.0,0.45287831]
[1721011504314,1.39713371,62498.0,62497.0,0.45287831]
[1721011504530,0.89713371,62498.0,62497.0,0.45287831]
[1721011504743,1.39713371,62498.0,62497.0,0.45287831]
[1721011505098,1.39713371,62498.0,62497.0,0.42429868]
[1721011505099,1.52871964,62498.0,62497.0,0.42429868]
[1721011505341,1.77379342,62498.0,62497.0,0.34449868]
[1721011505586,1.79263755,62498.0,62497.0,0.34449868]
[1721011505836,1.596683,62498.0,62497.0,0.34449868]
[1721011506074,1.46871964,62498.0,62497.0,0.57400231]
[1721011506309,1.46871964,62498.0,62497.0,0.69480231]
[1721011506310,1.45134288,62498.0,62497.0,0.69480231]
[1721011506601,0.03087556,62498.0,62497.0,0.83658555]
[1721011506841,0.5,62518.0,62510.0,0.70316287]
[1721011507125,0.14413797,62523.0,62510.0,1.16748525]
[1721011507126,1.13605903,62511.0,62510.0,1.16748525]
[1721011507381,0.11939512,62526.0,62525.0,0.35223502]
[1721011507655,0.11939512,62531.0,62530.0,0.26757963]
[1721011507886,0.34455379,62531.0,62530.0,0.83050502]
[1721011508089,0.34455379,62531.0,62530.0,0.47827]
[1721011508090,0.33070255,62531.0,62530.0,0.47827]
[1721011508279,0.33070255,62531.0,62530.0,0.36037]
[1721011508484,0.83070255,62531.0,62530.0,0.36037]
[1721011508803,1.02385255,62531.0,62530.0,0.36037]
[1721011509317,0.89488555,62531.0,62530.0,0.36037]
[1721011509742,1.39346721,62531.0,62530.0,0.36037]
[1721011509950,1.2323571,62531.0,62530.0,0.36037]
[1721011510121,1.34713416,62531.0,62530.0,0.36037]
[1721011510327,1.37013416,62531.0,62530.0,0.36037]
[1721011510532,1.37013416,62531.0,62507.0,0.00019258]
[1721011510533,0.56287215,62508.0,62507.0,0.00019258]
[1721011510737,1.37550816,62508.0,62507.0,0.00019258]
[1721011510938,1.37550816,62508.0,62497.0,0.004832]
[1721011510939,0.83921676,62498.0,62497.0,0.004832]
[1721011511155,0.83921676,62498.0,62497.0,0.324842]
[1721011511156,4.6361116,62498.0,62497.0,0.324842]
[1721011511355,4.82213128,62498.0,62497.0,0.324842]
[1721011511557,3.91258484,62498.0,62497.0,0.324842]
[1721011511762,0.95794303,62498.0,62497.0,0.324842]
[1721011511936,0.73090103,62498.0,62497.0,0.324842]
[1721011512135,0.43070255,62498.0,62497.0,0.324842]
[1721011512353,1.17024716,62498.0,62497.0,0.324842]
[1721011512545,1.41636507,62498.0,62497.0,0.324842]
[1721011512794,1.45707113,62498.0,62497.0,0.324842]
[1721011512944,1.55936507,62498.0,62497.0,0.324842]
[1721011513207,1.90471505,62498.0,62497.0,0.22326689]
[1721011513407,1.7121796,62498.0,62497.0,0.1797174]
[1721011513589,1.74616679,62498.0,62497.0,0.14264047]
[1721011514105,1.7376693,62498.0,62497.0,0.14264047]
[1721011514325,1.97312393,62498.0,62497.0,0.14264047]
[1721011514544,1.97312393,62498.0,62491.0,0.002]
[1721011514545,0.48511676,62492.0,62491.0,0.002]
[1721011514729,0.93797235,62492.0,62491.0,0.002]
[1721011514870,0.70048595,62492.0,62491.0,0.32204]
[1721011515070,1.11943357,62492.0,62491.0,0.32204]
[1721011515278,5.24909486,62492.0,62491.0,0.32204]
[1721011515894,0.13921676,62486.0,62481.0,0.009185]
[1721011516115,6.11706397,62486.0,62481.0,0.009185]
[1721011516317,6.42726188,62486.0,62481.0,0.009185]
[1721011516661,0.84121676,62482.0,62481.0,0.009185]
[1721011516793,6.42118831,62482.0,62481.0,0.009185]
[1721011517013,6.42118831,62482.0,62477.0,0.0001]
[1721011517014,0.13921676,62478.0,62477.0,0.0001]
[1721011517213,5.99672143,62478.0,62477.0,0.0001]
[1721011517411,0.83921676,62472.0,62471.0,0.002913]
[1721011517615,5.3682147,62472.0,62471.0,0.002913]
[1721011517822,4.79203263,62472.0,62471.0,0.323063]
[1721011517999,4.98039248,62472.0,62471.0,0.323063]
[1721011518450,5.10285054,62472.0,62471.0,0.323063]
[1721011518936,5.06409248,62472.0,62471.0,0.323063]
[1721011519307,0.13921676,62469.0,62468.0,0.009185]
[1721011519527,5.82697493,62469.0,62468.0,0.009185]
[1721011519706,5.86413965,62469.0,62468.0,0.009185]
[1721011519906,5.85081703,62469.0,62468.0,0.329345]
[1721011520149,4.39745301,62469.0,62468.0,0.329345]
[1721011520351,3.48379633,62469.0,62468.0,0.329345]
[1721011520503,3.5252241,62469.0,62468.0,0.329345]
[1721011520746,3.56598216,62469.0,62468.0,0.329345]
[1721011521395,3.5252241,62469.0,62468.0,0.329345]
[1721011521550,3.64591424,62469.0,62468.0,0.329345]
[1721011522051,2.8252241,62469.0,62468.0,0.329345]
[1721011522249,3.48379516,62469.0,62468.0,0.329345]
[1721011522863,3.48379536,62469.0,62468.0,0.329345]
[1721011523672,3.50051875,62469.0,62468.0,0.329345]
[1721011524705,3.17268835,62469.0,62468.0,0.329345]
[1721011524907,3.33480626,62469.0,62468.0,0.329345]
[1721011525252,6.41514926,62469.0,62468.0,0.329345]
[1721011525522,5.67008703,62469.0,62468.0,0.329345]
[1721011525965,5.67008703,62469.0,62465.0,0.00913]
[1721011525966,0.13921676,62466.0,62465.0,0.00913]
[1721011526103,6.59184415,62466.0,62465.0,0.00913]
[1721011526307,6.66869421,62466.0,62465.0,0.32931]
[1721011527151,7.36869421,62466.0,62465.0,0.32931]
[1721011527352,7.32993615,62466.0,62465.0,0.32931]
[1721011527563,7.36869421,62466.0,62465.0,0.32931]
[1721011527788,7.43396408,62466.0,62465.0,0.32931]
[1721011528107,7.57685678,62466.0,62465.0,0.32931]
[1721011528333,5.99520602,62466.0,62465.0,0.32931]
[1721011528535,6.69520602,62466.0,62465.0,0.32931]
[1721011528930,6.65577825,62466.0,62465.0,0.32931]
[1721011529140,6.69520602,62466.0,62465.0,0.32931]
[1721011529343,6.6537798,62466.0,62465.0,0.32931]
[1721011529546,5.77943863,62466.0,62465.0,0.32931]
[1721011529750,4.93398293,62466.0,62465.0,0.32931]
[1721011529946,5.63398293,62466.0,62465.0,0.32931]
[1721011530728,2.79453564,62466.0,62465.0,0.32931]
[1721011530908,1.57849164,62466.0,62465.0,0.32931]
[1721011531640,0.01619503,62466.0,62465.0,0.46048963]
[1721011531840,0.51672339,62469.0,62468.0,0.26757963]
[1721011532110,0.34455379,62469.0,62468.0,0.81789502]
[1721011532313,0.009185,62472.0,62471.0,0.72596287]
[1721011532502,0.00287215,62487.0,62486.0,0.32767963]
[1721011532678,0.33070255,62487.0,62486.0,0.64774963]
[1721011532878,0.33070255,62487.0,62486.0,0.84774963]
[1721011533202,0.40877979,62487.0,62486.0,0.93240502]
[1721011533432,0.90877979,62487.0,62486.0,0.93240502]
[1721011533997,0.08686229,62497.0,62496.0,0.039]
[1721011534206,0.08686229,62497.0,62496.0,0.59979963]
[1721011534550,0.47890669,62497.0,62496.0,0.79979963]
[1721011534700,0.41469269,62497.0,62496.0,0.79979963]
[1721011534878,0.3278304,62497.0,62496.0,0.59979963]
[1721011535080,0.3278304,62497.0,62496.0,0.9680074]
[1721011535338,0.83070255,62497.0,62496.0,0.7680074]
[1721011535460,0.8278304,62497.0,62496.0,0.9680074]
[1721011535888,0.83070255,62497.0,62496.0,0.9680074]
[1721011536115,0.83070255,62497.0,62496.0,0.68695502]
[1721011536535,0.83070255,62497.0,62496.0,0.88695502]
[1721011536914,0.83070255,62497.0,62496.0,0.68695502]
[1721011537262,0.83070255,62497.0,62496.0,0.88695502]
[1721011537553,1.02019391,62497.0,62496.0,0.53472]
[1721011537958,0.93070255,62497.0,62496.0,0.53222]
[1721011538405,1.16216255,62497.0,62496.0,0.53222]
[1721011538607,1.16299255,62497.0,62496.0,0.46802]
[1721011539159,1.16299255,62497.0,62496.0,0.32002]
[1721011539359,0.83516215,62497.0,62496.0,0.32002]
[1721011539582,0.89516215,62497.0,62496.0,0.32002]
[1721011539787,0.83516215,62497.0,62496.0,0.32002]
[1721011540015,0.89516215,62497.0,62496.0,0.32002]
[1721011540214,1.03051128,62497.0,62496.0,0.32002]
[1721011540777,1.05351128,62497.0,62496.0,0.32002]
[1721011541160,1.26555589,62497.0,62496.0,0.32002]
[1721011541361,0.00287215,62473.0,62468.0,0.14646839]
[1721011541554,0.5,62477.0,62476.0,0.26757963]
[1721011541771,0.5,62480.0,62479.0,0.33107963]
[1721011541986,0.5,62480.0,62479.0,0.45118963]
[1721011541987,0.4278304,62480.0,62479.0,0.45118963]
[1721011542132,0.93070255,62480.0,62479.0,0.45118963]
[1721011542334,0.93070255,62480.0,62479.0,0.65118963]
[1721011542535,0.4278304,62480.0,62479.0,0.79297287]
[1721011542738,0.50287215,62494.0,62493.0,0.06757963]
[1721011542960,0.33153255,62497.0,62496.0,0.06757963]
[1721011543301,0.3286604,62497.0,62496.0,0.7533074]
[1721011543762,0.3286604,62497.0,62496.0,0.97903525]
[1721011544273,0.50287215,62511.0,62510.0,0.06757963]
[1721011544642,1.23070255,62511.0,62510.0,0.38752963]
[1721011545072,1.29490155,62511.0,62510.0,0.38752963]
[1721011545271,1.29490155,62511.0,62510.0,0.35895]
[1721011545467,1.29490155,62511.0,62510.0,0.31995]
[1721011545661,1.41717955,62511.0,62510.0,0.31995]
[1721011545863,1.47717955,62511.0,62510.0,0.31995]
[1721011546068,1.47717955,62511.0,62510.0,0.35895]
[1721011546069,1.29490155,62511.0,62510.0,0.35895]
[1721011546421,1.2920294,62511.0,62510.0,0.58752963]
[1721011546626,1.3920294,62511.0,62510.0,0.58752963]
[1721011547261,1.3920294,62511.0,62510.0,0.72931287]
[1721011547262,0.7278304,62511.0,62510.0,0.72931287]
[1721011547487,0.7278304,62511.0,62510.0,0.91771287]
[1721011547867,0.4,62511.0,62510.0,1.01771287]
[1721011548224,0.27678031,62511.0,62510.0,1.11771287]
[1721011548432,0.27678031,62511.0,62510.0,1.28468887]
[1721011548433,0.16667882,62511.0,62510.0,1.28468887]
[1721011548626,0.16667882,62511.0,62510.0,1.14071287]
[1721011548952,0.16667882,62511.0,62510.0,1.01771287]
[1721011550367,0.26667882,62511.0,62510.0,1.01771287]
[1721011551622,0.26667882,62511.0,62510.0,0.86058502]
[1721011551779,0.26667882,62511.0,62510.0,0.91771287]
[1721011552107,0.26667882,62511.0,62510.0,1.24071287]
[1721011552265,0.26667882,62511.0,62510.0,1.34071287]
[1721011552850,0.26667882,62511.0,62510.0,1.04071287]
[1721011553049,0.26667882,62511.0,62510.0,1.14071287]
[1721011553929,0.26667882,62511.0,62510.0,1.01771287]
[1721011554657,0.26667882,62511.0,62510.0,0.96058502]
[1721011555250,0.26667882,62511.0,62510.0,1.01771287]
[1721011556353,0.26667882,62511.0,62510.0,1.04071287]
[1721011557078,0.26667882,62511.0,62510.0,1.34071287]
[1721011557435,0.26667882,62511.0,62510.0,1.31771287]
[1721011557635,0.26667882,62511.0,62510.0,1.34071287]
[1721011558202,0.26667882,62511.0,62510.0,1.77264187]
[1721011559945,0.26667882,62511.0,62510.0,1.34071287]
[1721011560158,0.26667882,62511.0,62510.0,1.11771287]
[1721011560580,0.26667882,62511.0,62510.0,1.46168887]
[1721011560830,0.26667882,62511.0,62510.0,3.31771287]
[1721011561193,0.26667882,62511.0,62510.0,3.46168887]
[1721011561403,0.26667882,62511.0,62510.0,3.74964187]
[1721011561813,0.26667882,62511.0,62510.0,3.34071287]
[1721011562402,0.28340221,62511.0,62510.0,3.14071287]
[1721011562588,0.28340221,62511.0,62510.0,3.04071287]
[1721011562834,0.28340221,62511.0,62510.0,3.14071287]
[1721011563368,0.28340221,62511.0,62510.0,3.34071287]
[1721011563574,0.28340221,62511.0,62510.0,3.14071287]
[1721011568457,0.28340221,62511.0,62510.0,3.11771287]
[1721011569237,0.28340221,62511.0,62510.0,3.01771287]
[1721011569623,0.28320967,62511.0,62510.0,3.01771287]
[1721011570311,0.28320967,62511.0,62510.0,3.01862587]
[1721011570515,0.28320967,62511.0,62510.0,2.94169802]
[1721011570755,0.28403967,62511.0,62510.0,2.99882587]
[1721011574136,0.28403967,62511.0,62510.0,3.19882587]
[1721011574446,0.28403967,62511.0,62510.0,3.22182587]
[1721011574813,0.18403967,62511.0,62510.0,3.46580187]
[1721011575038,1e-08,62511.0,62510.0,3.32182587]
[1721011575752,1e-08,62511.0,62510.0,3.12182587]
[1721011576731,1e-08,62511.0,62510.0,3.32182587]
[1721011579591,1e-08,62511.0,62510.0,3.02182587]
[1721011579945,1e-08,62511.0,62510.0,2.99882587]
[1721011580145,1e-08,62511.0,62510.0,2.94169802]
[1721011580380,1e-08,62511.0,62510.0,2.84169802]
[1721011580583,0.00287216,62511.0,62510.0,2.64169802]
[1721011580809,0.14727216,62511.0,62510.0,2.64169802]
[1721011581010,0.14727216,62511.0,62510.0,2.359863]
[1721011581011,0.24727216,62511.0,62510.0,2.359863]
[1721011581390,0.26057921,62511.0,62510.0,2.44451839]
[1721011581558,0.26057921,62511.0,62510.0,2.47309802]
[1721011581926,0.26057921,62511.0,62510.0,2.44451839]
[1721011583043,0.24440001,62511.0,62510.0,2.84169802]
[1721011583247,0.10000001,62511.0,62510.0,2.89882587]
[1721011583467,1e-08,62511.0,62510.0,2.89882587]
[1721011583675,0.10000001,62511.0,62510.0,2.89882587]
[1721011584097,0.10000001,62511.0,62510.0,2.84169802]
[1721011584478,0.10000001,62511.0,62510.0,2.89882587]
[1721011584699,1e-08,62511.0,62510.0,2.84169802]
[1721011585672,1e-08,62511.0,62510.0,2.89882587]
[1721011587357,1e-08,62511.0,62510.0,2.99882587]
[1721011590343,0.01330449,62511.0,62510.0,2.99882587]
[1721011590545,0.03002788,62511.0,62510.0,2.99882587]
[1721011591359,0.13002788,62511.0,62510.0,2.99982587]
[1721011591555,0.13002788,62511.0,62510.0,3.02282587]
[1721011592638,0.13002788,62511.0,62510.0,2.94169802]
[1721011592843,0.13002788,62511.0,62510.0,2.84269802]
[1721011593053,0.1167234,62511.0,62510.0,2.84269802]
[1721011593262,0.1167234,62511.0,62510.0,2.84169802]
[1721011593263,0.13002873,62511.0,62510.0,2.84169802]
[1721011593707,0.03002873,62511.0,62510.0,2.84469802]
[1721011593910,0.03002873,62511.0,62510.0,2.47609802]
[1721011593911,0.03596441,62511.0,62510.0,2.47609802]
[1721011594117,0.19791248,62511.0,62510.0,2.47609802]
[1721011594294,0.13290088,62511.0,62510.0,2.47309802]
[1721011594645,0.28140088,62511.0,62510.0,2.47509802]
[1721011594786,0.28140088,62511.0,62510.0,2.44651839]
[1721011595646,0.28140088,62511.0,62510.0,2.67509802]
[1721011595878,0.28140088,62511.0,62510.0,2.67309802]
[1721011596198,0.28440088,62511.0,62510.0,2.67309802]
[1721011596553,0.2814027,62511.0,62510.0,2.67309802]
[1721011596954,0.28440271,62511.0,62510.0,2.67309802]
[1721011599717,0.28153056,62511.0,62510.0,2.67309802]
[1721011600002,0.28440271,62511.0,62510.0,2.67309802]
[1721011600175,0.28440271,62511.0,62510.0,2.47309802]
[1721011600967,0.28440271,62511.0,62510.0,0.44451839]
[1721011602123,0.28140271,62511.0,62510.0,0.44451839]
[1721011602514,0.29340271,62511.0,62510.0,0.44551839]
[1721011602892,0.28140271,62511.0,62510.0,0.44451839]
[1721011603105,0.281403,62511.0,62510.0,0.44451839]
[1721011603298,0.293403,62511.0,62510.0,0.44551839]
[1721011603498,0.293403,62511.0,62510.0,0.47409802]
[1721011603908,0.293403,62511.0,62510.0,0.44551839]
[1721011604150,0.293403,62511.0,62510.0,0.32179532]
[1721011604369,0.51919653,62511.0,62510.0,0.36079532]
[1721011604568,0.29646653,62511.0,62510.0,0.36079532]
[1721011604767,0.79646653,62511.0,62510.0,0.38937495]
[1721011604966,0.29053085,62511.0,62510.0,0.67403034]
[1721011605324,0.281403,62511.0,62510.0,0.47303034]
[1721011605524,0.292403,62511.0,62510.0,0.44445071]
[1721011606168,0.281403,62511.0,62510.0,0.44445071]
[1721011606410,0.27909555,62511.0,62510.0,0.44445071]
[1721011606620,0.29240329,62511.0,62510.0,0.35979532]
[1721011606827,0.29240317,62511.0,62510.0,0.35979532]
[1721011606980,0.28140317,62511.0,62510.0,0.35979532]
[1721011607171,0.29240317,62511.0,62510.0,0.44445071]
[1721011607609,0.29240317,62511.0,62510.0,0.35979532]
[1721011607810,0.35240317,62511.0,62510.0,0.35979532]
[1721011608011,0.78576855,62511.0,62510.0,0.35979532]
[1721011608601,0.71587817,62511.0,62510.0,0.35979532]
[1721011608809,0.69587817,62511.0,62510.0,0.35979532]
[1721011609126,0.69587817,62511.0,62510.0,0.32079532]
[1721011609350,0.68487817,62511.0,62510.0,0.35979532]
[1721011609559,0.69687817,62511.0,62510.0,0.36079532]
[1721011609692,0.69687947,62511.0,62510.0,0.32179532]
[1721011609886,0.69687947,62511.0,62510.0,0.36079532]
[1721011609887,0.58580147,62511.0,62510.0,0.36079532]
[1721011610096,0.58580147,62511.0,62510.0,0.32079532]
[1721011610097,0.57380147,62511.0,62510.0,0.32079532]
[1721011610296,0.73690535,62511.0,62510.0,0.02199532]
[1721011610527,0.70247215,62497.0,62496.0,0.039]
[1721011610677,1.37944554,62497.0,62496.0,0.35902]
[1721011610876,1.37944554,62497.0,62496.0,0.32002]
[1721011610877,1.57625524,62497.0,62496.0,0.32002]
[1721011611139,1.59297863,62497.0,62496.0,0.32002]
[1721011611349,1.47462486,62497.0,62496.0,0.32002]
[1721011611569,1.36913486,62497.0,62496.0,0.35902]
[1721011611801,1.47996614,62497.0,62496.0,0.35902]
[1721011611999,1.54292605,62497.0,62496.0,0.35902]
[1721011612622,1.77858105,62497.0,62496.0,0.35902]
[1721011612904,1.54292605,62497.0,62496.0,0.35902]
[1721011613103,1.55692605,62497.0,62496.0,0.35902]
[1721011613259,1.71261865,62497.0,62496.0,0.35902]
[1721011613463,1.69861865,62497.0,62496.0,0.35902]
[1721011613663,1.43209477,62497.0,62496.0,0.35902]
[1721011613871,1.68166984,62497.0,62496.0,0.35902]
[1721011614066,1.44601053,62497.0,62496.0,0.35902]
[1721011614270,1.43201053,62497.0,62496.0,0.35902]
[1721011614745,1.44601053,62497.0,62496.0,0.35902]
[1721011615782,1.28029804,62497.0,62496.0,0.35902]
[1721011616187,1.28030236,62497.0,62496.0,0.35902]
[1721011616580,1.26698912,62497.0,62496.0,0.35902]
[1721011616783,1.28030201,62497.0,62496.0,0.35902]
[1721011617214,1.26630201,62497.0,62496.0,0.35902]
[1721011617416,1.1041841,62497.0,62496.0,0.35902]
[1721011617620,1.1181841,62497.0,62496.0,0.35902]
[1721011618020,1.1041841,62497.0,62496.0,0.35902]